bitfinex/quotes_ETHUSD_20251128
["timestamp","ask_amount","ask_price","bid_price","bid_amount"]
[1764308593573,0.002,3024.7,3024.6,6.02466192]
[1764308593774,0.002,3024.7,3024.6,6.51026192]
[1764308594175,0.002,3024.7,3024.6,14.57971426]
[1764308594342,0.002,3025.0,3024.7,0.72559411]
[1764308594543,0.002,3025.0,3024.9,10.75482973]
[1764308594969,0.002,3025.0,3024.9,11.24042973]
[1764308595470,0.002,3025.0,3024.9,6.51026192]
[1764308596250,0.002,3025.0,3024.9,9.81615632]
[1764308600669,0.002,3025.0,3024.9,9.81028081]
[1764308600871,0.002,3025.0,3024.9,11.37489426]
[1764308603174,0.002,3025.0,3024.9,10.32039426]
[1764308603351,0.002,3025.0,3024.9,8.96478081]
[1764308603553,0.002,3025.0,3024.9,10.01928081]
[1764308604272,0.002,3025.0,3024.9,9.91928081]
[1764308604580,0.002,3025.0,3024.9,10.01928081]
[1764308608688,0.002,3025.0,3024.9,8.96478081]
[1764308608867,0.002,3025.0,3024.9,9.06478081]
[1764308610088,0.002,3025.0,3024.9,10.81931922]
[1764308610459,0.002,3025.0,3024.9,10.35041922]
[1764308612864,0.0562,3025.0,3024.9,10.35041922]
[1764308613064,0.0562,3025.0,3024.9,9.06478081]
[1764308613393,0.002,3025.0,3024.9,9.06478081]
[1764308615395,0.002,3025.0,3024.9,9.53368081]
[1764308621295,0.002,3025.0,3024.9,10.02528081]
[1764308632893,0.002,3025.0,3024.9,8.96478081]
[1764308633294,0.002,3025.0,3024.9,10.20185922]
[1764308633715,0.002,3025.0,3024.9,10.78015922]
[1764308634228,0.002,3025.0,3024.9,11.27175922]
[1764308646744,0.002,3025.0,3024.9,10.01313081]
[1764308647418,0.002,3025.0,3024.9,5.28883851]
[1764308649950,0.3663533,3025.0,3024.9,4.21893851]
[1764308650351,0.3663533,3025.0,3024.9,4.31893851]
[1764308650530,0.3121533,3025.0,3024.9,4.31893851]
[1764308653142,0.3121533,3025.0,3024.9,5.29859745]
[1764308653322,0.3121533,3025.0,3024.9,10.85029088]
[1764308653528,0.002,3025.0,3024.9,10.85029088]
[1764308657560,0.002,3025.0,3024.9,10.98266472]
[1764308659728,0.002,3025.0,3024.9,11.38816872]
[1764308662563,0.002,3025.0,3024.9,16.1087628]
[1764308662735,0.002,3025.0,3024.9,16.1097628]
[1764308669272,0.002,3025.0,3024.9,26.1097628]
[1764308670871,0.002,3025.0,3024.9,25.4251628]
[1764308671070,0.002,3025.0,3024.9,26.0891628]
[1764308675151,0.002,3025.0,3024.9,20.44071961]
[1764308675349,0.002,3025.0,3024.9,25.1631628]
[1764308675561,0.002,3025.0,3024.9,25.6413628]
[1764308675760,0.002,3025.0,3024.9,26.0963628]
[1764308681178,0.002,3025.4,3025.3,5.5480373]
[1764308681378,0.002,3025.4,3025.3,6.9953956]
[1764308681574,0.002,3025.4,3025.3,7.44544103]
[1764308681784,0.002,3025.4,3025.3,7.5777864]
[1764308682384,0.002,3025.4,3025.3,10.88324371]
[1764308683265,0.002,3025.4,3025.3,11.28874771]
[1764308683671,0.002,3025.5,3025.4,0.505504]
[1764308683883,0.002,3025.5,3025.4,3.75207872]
[1764308684408,0.002,3025.5,3025.4,3.88441095]
[1764308684779,0.002,3025.5,3025.4,7.189759]
[1764308684980,0.002,3025.5,3025.4,7.15670552]
[1764308691805,0.002,3025.5,3025.4,17.15670552]
[1764308696511,0.002,3025.5,3025.4,16.67360552]
[1764308696910,0.002,3025.5,3025.4,17.15670552]
[1764308697310,0.002,3025.5,3025.4,17.15770552]
[1764308697914,0.0562,3025.5,3025.4,15.80090152]
[1764308698222,0.1104,3025.5,3025.4,18.47012347]
[1764308698404,0.0562,3025.5,3025.4,18.47012347]
[1764308700532,0.002,3025.5,3025.4,19.42142347]
[1764308700726,0.002,3025.5,3025.4,19.82692747]
[1764308700931,0.002,3025.5,3025.4,22.21272536]
[1764308701839,0.002,3025.5,3025.4,21.26142536]
[1764308702034,0.0562,3025.5,3025.4,20.85592136]
[1764308702823,0.002,3025.5,3025.4,20.85592136]
[1764308703230,0.0562,3025.5,3025.4,20.85592136]
[1764308705506,0.1104,3025.5,3025.4,18.47012347]
[1764308706208,0.002,3025.5,3025.4,19.42142347]
[1764308706422,0.002,3025.5,3025.4,18.47012347]
[1764308706601,0.002,3025.5,3025.4,25.27496477]
[1764308706804,0.002,3025.5,3025.4,28.13300698]
[1764308707004,0.002,3025.5,3025.4,23.41056379]
[1764308711903,0.002,3025.6,3025.5,1.23109811]
[1764308712127,0.002,3025.6,3025.5,2.20945049]
[1764308712530,0.002,3025.6,3025.5,2.3417766]
[1764308712830,0.002,3025.6,3025.5,5.05578654]
[1764308713034,0.002,3025.6,3025.5,15.05578654]
[1764308713229,0.002,3025.6,3025.5,15.02273416]
[1764308713852,0.002,3025.6,3025.5,18.32797296]
[1764308717274,0.002,3025.6,3025.5,23.05041615]
[1764308717470,0.002,3025.6,3025.5,18.32797296]
[1764308717644,0.002,3025.6,3025.5,23.05041615]
[1764308722870,0.002,3025.6,3025.5,18.32797296]
[1764308723968,0.002,3025.6,3025.5,23.05041615]
[1764308724770,0.002,3025.6,3025.5,23.04833189]
[1764308726773,0.0562,3025.6,3025.5,22.10303189]
[1764308727348,0.002,3025.6,3025.5,22.10303189]
[1764308730975,0.002,3025.6,3025.5,23.05093189]
[1764308731574,0.002,3025.6,3025.5,22.57253189]
[1764308732147,0.002,3025.6,3025.5,22.57353189]
[1764308734469,0.002,3025.6,3025.5,23.05193189]
[1764308759598,0.002,3025.6,3025.5,25.4211727]
[1764308760828,0.0562,3025.6,3025.5,24.4732727]
[1764308760998,0.0562,3025.6,3025.5,17.03890383]
[1764308761205,0.0562,3025.6,3025.5,18.46692384]
[1764308761509,0.002,3025.6,3025.5,18.46692384]
[1764308761707,0.002,3025.6,3025.5,19.19251795]
[1764308762109,0.0562,3025.6,3025.5,19.19251795]
[1764308763404,0.1104,3025.6,3025.5,19.19251795]
[1764308763610,0.1104,3025.6,3025.5,14.03183291]
[1764308763808,0.1104,3025.6,3025.5,13.5142388]
[1764308764018,0.1104,3025.6,3025.5,13.6142388]
[1764308764219,0.1104,3025.6,3025.5,14.33983291]
[1764308764622,0.1104,3025.6,3025.5,14.23983291]
[1764308765337,0.1104,3025.6,3025.5,13.5142388]
[1764308766540,0.1104,3025.6,3025.5,10.001]
[1764308766541,0.41987953,3025.6,3025.5,10.001]
[1764308766737,0.41987953,3025.6,3025.5,13.3062388]
[1764308767609,0.41987953,3025.6,3025.5,13.4062388]
[1764308767814,0.41987953,3025.6,3025.5,10.001]
[1764308768013,0.41987953,3025.6,3025.5,13.3062388]
[1764308768412,0.1104,3025.6,3025.5,13.3062388]
[1764308768613,0.1104,3025.6,3025.5,10.001]
[1764308770229,0.1104,3025.6,3025.5,13.3062388]
[1764308770628,0.1104,3025.6,3025.5,10.001]
[1764308772047,0.45213121,3025.6,3025.5,10.001]
[1764308772242,0.1104,3025.6,3025.5,10.001]
[1764308772615,3.41552956,3025.6,3025.5,10.001]
[1764308774037,3.72417817,3025.6,3025.5,10.001]
[1764308774859,0.41904861,3025.6,3025.5,10.001]
[1764308775354,0.79164902,3025.6,3025.5,10.001]
[1764308777556,4.09677858,3025.6,3025.5,0.001]
[1764308777727,0.79164902,3025.6,3025.5,0.001]
[1764308779625,4.09677858,3025.6,3025.5,0.001]
[1764308779825,0.79164902,3025.6,3025.5,0.001]
[1764308783970,0.1104,3025.6,3025.5,0.001]
[1764308784882,0.0562,3025.6,3025.5,0.001]
[1764308785379,0.36475593,3025.6,3025.5,0.001]
[1764308785984,0.36475582,3025.6,3025.5,0.001]
[1764308787601,0.002,3025.6,3025.5,5.78307196]
[1764308787787,0.002,3025.6,3025.5,6.38227916]
[1764308788351,0.002,3025.6,3025.5,9.68751796]
[1764308793304,0.002,3025.6,3025.5,4.963146]
[1764308793707,0.002,3025.6,3025.5,9.62057034]
[1764308794012,0.002,3025.6,3025.5,10.41311207]
[1764308798816,0.002,3025.6,3025.5,10.54546007]
[1764308816944,0.002,3025.6,3025.5,10.07206007]
[1764308817139,0.002,3025.6,3025.5,9.58776007]
[1764308817654,0.0562,3025.6,3025.5,4.86338811]
[1764308817841,0.0562,3025.6,3025.5,4.13183291]
[1764308818008,0.002,3025.6,3025.5,9.32390487]
[1764308818713,0.002,3025.6,3025.5,9.80030487]
[1764308820052,0.002,3025.7,3025.6,0.405504]
[1764308820237,0.002,3026.3,3025.6,0.405504]
[1764308820238,0.002,3026.3,3026.2,0.1]
[1764308820545,0.002,3026.3,3026.2,14.85031628]
[1764308820742,0.002,3026.3,3026.2,12.42113931]
[1764308821045,0.0562,3026.3,3026.2,0.72559411]
[1764308821345,0.0562,3026.3,3026.2,5.15534557]
[1764308821644,0.0562,3026.3,3026.2,4.1631131]
[1764308821838,0.002,3026.3,3026.2,4.1631131]
[1764308822446,0.002,3026.3,3026.2,0.208]
[1764308822447,0.0562,3026.3,3026.2,0.208]
[1764308822622,0.0562,3026.3,3026.2,3.64551899]
[1764308823017,0.0562,3026.3,3026.2,8.36989095]
[1764308823320,0.0562,3026.3,3026.2,8.33684621]
[1764308823714,0.002,3026.3,3026.2,8.70454621]
[1764308823914,0.002,3026.3,3026.2,10.81231817]
[1764308824747,0.002,3026.3,3026.2,9.86821817]
[1764308825051,0.002,3026.3,3026.2,10.33591817]
[1764308826316,0.002,3026.3,3026.2,10.81231817]
[1764308826816,0.002,3026.3,3026.2,10.33591817]
[1764308827129,0.002,3026.3,3026.2,8.33684621]
[1764308827543,0.002,3026.3,3026.2,8.70454621]
[1764308827749,0.002,3026.3,3026.2,8.33684621]
[1764308834588,0.002,3026.3,3026.2,10.01264032]
[1764308834951,0.002,3026.3,3026.2,11.00493515]
[1764308835255,0.002,3026.3,3026.2,12.76634565]
[1764308838263,0.002,3026.3,3026.2,11.77405082]
[1764308838467,0.002,3026.3,3026.2,12.17955482]
[1764308844803,0.002,3026.3,3026.2,12.17422402]
[1764308845404,0.002,3026.3,3026.2,12.30651993]
[1764308845775,0.0082,3027.2,3026.8,0.1]
[1764308845978,0.0082,3027.2,3026.9,0.208]
[1764308846402,0.0082,3027.0,3026.9,0.208]
[1764308846903,0.0082,3027.0,3026.5,0.1]
[1764308847110,0.0542,3027.3,3026.6,0.208]
[1764308847319,3.61226499,3027.2,3026.6,0.208]
[1764308847619,0.0082,3026.7,3026.6,0.208]
[1764308848105,0.0164,3026.7,3026.6,13.51201462]
[1764308850511,0.00335634,3026.7,3026.6,13.51201462]
[1764308850941,3.35747862,3027.3,3026.6,13.51201462]
[1764308851115,0.30913978,3027.2,3026.6,13.51201462]
[1764308851442,0.67580162,3027.1,3026.6,16.81605215]
[1764308851631,0.30913978,3027.0,3026.6,3.51201462]
[1764308851819,0.36666184,3027.1,3026.6,3.51201462]
[1764308852020,0.30914146,3027.0,3026.6,3.51201462]
[1764308852232,0.36666184,3027.1,3026.6,3.51201462]
[1764308852419,0.30914944,3027.0,3026.6,3.51201462]
[1764308852625,0.36666184,3027.1,3026.6,3.51201462]
[1764308852850,0.30914942,3027.0,3026.6,3.51201462]
[1764308853053,0.36666184,3027.1,3026.6,0.208]
[1764308853369,0.67616165,3027.0,3026.6,0.208]
[1764308853542,0.36701222,3027.0,3026.6,3.51202645]
[1764308854165,0.002,3027.0,3026.6,3.51202645]
[1764308857575,4.72104116,3027.0,3026.2,3.3044482]
[1764308857875,0.30928706,3026.9,3026.4,0.1]
[1764308858172,0.30928706,3026.8,3026.4,3.40423045]
[1764308858336,0.30928706,3026.7,3026.4,3.40423045]
[1764308858539,0.30928706,3026.6,3026.4,3.40423045]
[1764308858754,0.002,3027.0,3026.4,3.40423045]
[1764308858755,0.30928706,3026.5,3026.4,3.40423045]
[1764308861667,0.30928706,3026.5,3026.4,3.800273]
[1764308861846,0.002,3027.0,3026.4,6.60848633]
[1764308862179,0.30925391,3026.9,3026.4,3.30423045]
[1764308862348,0.30925391,3026.8,3026.4,3.30423045]
[1764308862548,0.30925391,3026.7,3026.4,3.30423045]
[1764308862748,0.30925391,3026.6,3026.4,3.30423045]
[1764308862949,0.002,3027.0,3026.4,3.30423045]
[1764308863150,0.30925153,3026.9,3026.4,6.60848633]
[1764308863449,0.33253827,3027.0,3026.4,6.60848633]
[1764308863450,0.30925153,3026.8,3026.4,6.60848633]
[1764308863685,0.30925153,3026.7,3026.4,6.60848633]
[1764308863848,0.30925153,3026.6,3026.4,6.60848633]
[1764308864048,0.33253827,3027.0,3026.4,6.60848633]
[1764308864263,0.30925081,3026.9,3026.4,6.60848633]
[1764308864574,0.30925081,3026.8,3026.4,6.60848633]
[1764308864758,0.30925081,3026.7,3026.4,6.60848633]
[1764308864942,0.30925081,3026.6,3026.4,6.60848633]
[1764308865146,0.002,3027.0,3026.4,7.08278633]
[1764308865378,0.30922981,3026.9,3026.6,0.1]
[1764308865582,0.30922981,3026.8,3026.6,0.1]
[1764308865881,0.002,3027.0,3026.9,0.1]
[1764308866181,0.002,3027.0,3026.9,3.40371006]
[1764308866182,0.30919164,3027.0,3026.9,3.40371006]
[1764308866579,0.30919164,3027.0,3026.9,3.30371006]
[1764308867084,0.30919164,3027.0,3026.9,3.40371006]
[1764308868292,0.002,3027.4,3026.9,8.52347302]
[1764308868590,0.3091797,3027.3,3027.2,0.1]
[1764308870491,0.3091797,3027.3,3027.2,3.40338266]
[1764308870995,0.3091797,3027.3,3027.2,0.1]
[1764308872657,0.3091797,3027.3,3027.2,3.40338266]
[1764308873689,0.3091797,3027.3,3027.2,3.86638266]
[1764308873988,0.3091797,3027.3,3027.2,4.34068266]
[1764308874211,0.30924771,3027.3,3027.2,4.34068266]
[1764308874686,0.30924771,3027.3,3027.2,3.86638266]
[1764308875699,0.30924771,3027.3,3027.2,4.34068266]
[1764308875895,0.30924771,3027.3,3027.2,4.95407277]
[1764308876194,0.002,3027.4,3027.2,8.25745543]
[1764308876397,0.002,3027.4,3027.3,1.2453]
[1764308876564,0.002,3027.4,3027.3,4.54857354]
[1764308879361,0.002,3027.4,3027.3,0.208]
[1764308880874,0.002,3027.4,3027.3,4.78878698]
[1764308881092,0.002,3027.4,3027.3,5.26308698]
[1764308882168,0.002,3027.4,3027.3,5.23005425]
[1764308885990,0.002,3027.4,3027.3,5.98868109]
[1764308888106,0.002,3027.4,3027.3,5.95564836]
[1764308888306,0.002,3027.4,3027.3,5.98868109]
[1764308889594,0.002,3027.4,3027.3,5.98968109]
[1764308890293,0.002,3027.4,3027.3,6.39518509]
[1764308890516,0.002,3027.4,3027.3,6.36215236]
[1764308891915,0.002,3027.4,3027.3,6.39518509]
[1764308892158,0.002,3027.4,3027.3,7.08774647]
[1764308893862,0.208,3029.8,3027.3,7.08774647]
[1764308893863,0.30842621,3029.2,3027.4,16.07873511]
[1764308894016,1.61534664,3030.0,3029.8,0.1]
[1764308894017,0.30833659,3029.9,3029.8,0.1]
[1764308894360,3.29969411,3030.6,3029.3,3.30109266]
[1764308894361,5.44463527,3030.6,3029.3,3.30109266]
[1764308894544,0.30788612,3030.5,3029.6,0.208]
[1764308894861,0.88313826,3030.4,3029.6,0.208]
[1764308895067,0.30788612,3030.3,3029.2,0.72559411]
[1764308895221,0.30788612,3030.2,3029.3,0.208]
[1764308895421,0.30788612,3030.1,3029.3,0.208]
[1764308895622,0.73618462,3030.6,3029.5,0.1]
[1764308895845,1.84303239,3030.5,3029.5,0.1]
[1764308896031,6.6000066,3030.3,3029.5,0.1]
[1764308896357,0.30763949,3030.2,3028.9,0.72559411]
[1764308896575,6.6000066,3030.3,3028.8,3.40159893]
[1764308896576,5.02668065,3030.1,3028.8,0.1]
[1764308896721,4.71904116,3029.8,3028.7,0.308]
[1764308896916,0.30763949,3029.7,3028.7,0.308]
[1764308897123,0.30763949,3029.7,3028.8,0.72559411]
[1764308897352,0.50266806,3029.6,3028.8,0.72559411]
[1764308898039,3.30087473,3029.5,3028.7,1.03359411]
[1764308898439,3.30087473,3029.5,3028.7,0.308]
[1764308898440,6.60174946,3029.5,3028.7,0.308]
[1764308898727,3.30087473,3029.5,3028.7,0.93359411]
[1764308898943,0.71043155,3029.4,3028.7,0.93359411]
[1764308899138,0.71043155,3029.4,3028.7,4.23533317]
[1764308899840,0.71043155,3029.4,3028.7,4.02733317]
[1764308900031,3.30109266,3029.3,3028.6,4.02741614]
[1764308900240,0.40115242,3029.2,3028.6,4.02741614]
[1764308900437,0.40115242,3029.2,3028.6,7.32927178]
[1764308900641,0.71043155,3029.4,3028.7,0.1]
[1764308900851,4.01142752,3029.4,3028.7,0.1]
[1764308901057,0.71043155,3029.4,3028.7,0.1]
[1764308901257,4.01144683,3029.4,3028.7,0.1]
[1764308902054,7.31246211,3029.4,3028.5,0.72559411]
[1764308902278,0.73124621,3029.3,3028.5,0.72559411]
[1764308902473,3.30101528,3029.4,3028.5,0.72559411]
[1764308902763,6.60203056,3029.4,3028.5,0.82559411]
[1764308904160,3.30101528,3029.4,3028.6,3.30185564]
[1764308905870,4.71413693,3029.3,3028.4,0.208]
[1764308906049,6.60203056,3029.4,3028.4,0.208]
[1764308906050,4.71413693,3029.1,3028.4,0.208]
[1764308906245,4.71413693,3028.9,3028.0,0.2974]
[1764308906440,4.71413693,3028.9,3028.1,3.51040084]
[1764308906971,3.30141961,3029.0,3028.1,3.51040084]
[1764308907166,0.30751197,3028.9,3028.1,6.81280168]
[1764308907373,0.36089316,3028.8,3028.1,6.81280168]
[1764308907875,0.36089316,3028.8,3028.2,0.1]
[1764308908078,0.36089316,3028.8,3028.1,0.208]
[1764308908249,4.71413693,3028.5,3027.2,0.4665]
[1764308908446,0.51556632,3028.7,3027.2,0.4665]
[1764308908447,4.92213693,3028.7,3027.5,0.4665]
[1764308908746,0.83596742,3028.6,3027.6,0.03302946]
[1764308908959,0.30766441,3028.5,3027.6,0.1]
[1764308909279,4.71413693,3028.5,3027.6,0.1]
[1764308909440,4.71413693,3028.5,3027.6,0.13302946]
[1764308909641,4.71413693,3028.5,3027.6,0.1]
[1764308909869,0.52424399,3028.4,3027.6,0.1]
[1764308910335,3.30218274,3028.3,3027.6,0.1]
[1764308910544,4.71413693,3027.9,3027.4,0.209]
[1764308910766,4.71413693,3027.9,3027.4,0.001]
[1764308911372,4.71413693,3027.7,3027.4,0.001]
[1764308911570,0.50219449,3027.6,3027.4,0.001]
[1764308912038,4.71413693,3027.7,3027.4,0.001]
[1764308912474,3.30294622,3027.6,3027.4,0.001]
[1764308913377,5.35258582,3027.5,3027.4,0.001]
[1764308914671,8.65564114,3027.5,3027.4,0.001]
[1764308915244,3.94150421,3027.5,3027.4,0.001]
[1764308915445,5.13736295,3027.5,3027.4,0.001]
[1764308916169,4.80668233,3027.5,3027.4,0.001]
[1764308917458,11.34780958,3027.5,3027.4,0.001]
[1764308917657,6.85462824,3027.5,3027.4,0.001]
[1764308918258,7.18530886,3027.5,3027.4,0.001]
[1764308918482,6.47704157,3027.5,3027.4,0.001]
[1764308919246,12.71308431,3027.5,3027.4,0.001]
[1764308922498,6.36804157,3027.5,3027.4,0.001]
[1764308922667,4.70791406,3027.5,3027.4,0.001]
[1764308923076,5.43350817,3027.5,3027.4,0.001]
[1764308923792,1.92145285,3027.5,3027.4,0.001]
[1764308924005,0.93459411,3027.6,3027.4,0.001]
[1764308924286,3.30224494,3028.3,3027.4,0.001]
[1764308924287,0.209,3027.9,3027.5,0.4845]
[1764308924986,0.209,3028.0,3027.5,0.9571]
[1764308926264,3.30261897,3027.9,3027.5,0.9571]
[1764308927378,0.002,3027.9,3027.6,0.4726]
[1764308928015,0.002,3027.9,3027.8,0.4845]
[1764308928383,0.002,3027.9,3027.8,0.9571]
[1764308929183,0.002,3027.9,3027.8,1.0571]
[1764308929378,0.002,3027.9,3027.8,5.12611064]
[1764308930677,0.002,3027.9,3027.8,1.82338259]
[1764308930882,0.002,3027.9,3027.8,5.12611064]
[1764308931093,0.002,3027.9,3027.8,1.82338259]
[1764308931294,0.002,3027.9,3027.8,5.12611064]
[1764308932396,0.002,3027.9,3027.8,5.85170475]
[1764308934513,0.002,3027.9,3027.8,0.4845]
[1764308934716,0.002,3027.9,3027.8,4.25982805]
[1764308935579,0.002,3027.9,3027.8,4.35982805]
[1764308936390,0.002,3027.9,3027.8,5.29442216]
[1764308938184,0.002,3027.9,3027.8,5.32744944]
[1764308938613,0.002,3027.9,3027.8,6.48773509]
[1764308938788,0.002,3027.9,3027.8,6.52076237]
[1764308938994,0.002,3027.9,3027.8,6.48773509]
[1764308939783,0.002,3027.9,3027.8,12.62377783]
[1764308940386,10.56392212,3030.2,3027.9,1.13109811]
[1764308940685,0.72559411,3029.9,3029.0,3.30131878]
[1764308940913,0.30762649,3029.8,3029.0,3.30131878]
[1764308941103,0.30762649,3029.8,3028.9,0.1]
[1764308941104,0.30762649,3029.7,3028.9,0.1]
[1764308941416,0.93459411,3030.0,3028.7,0.209]
[1764308941417,4.71263804,3029.4,3028.7,0.209]
[1764308941613,0.4712638,3029.3,3028.7,0.209]
[1764308942586,3.30120163,3029.2,3028.7,0.209]
[1764308942788,6.60240326,3029.2,3028.7,0.209]
[1764308942985,4.71263804,3029.1,3028.2,4.02784148]
[1764308943215,5.04331866,3029.1,3028.1,0.1945]
[1764308943416,5.04331866,3029.1,3028.1,3.70586894]
[1764308943417,1.16457219,3029.0,3028.1,3.70586894]
[1764308943618,1.16457219,3029.0,3028.1,3.80586894]
[1764308944515,3.3015286,3028.9,3028.1,0.1]
[1764308944715,3.3015286,3028.9,3028.1,0.1945]
[1764308944716,6.6030572,3028.9,3028.1,0.1945]
[1764308944921,6.6030572,3028.9,3028.1,0.6671]
[1764308945085,0.77676294,3028.8,3028.1,0.6671]
[1764308946297,0.77676294,3028.8,3028.0,0.1]
[1764308946621,4.07845228,3028.8,3028.1,3.49681965]
[1764308946820,7.38014162,3028.8,3028.1,0.1945]
[1764308946986,7.71082224,3028.8,3027.9,0.72559411]
[1764308947186,5.62405457,3028.7,3027.8,0.72559411]
[1764308947430,5.62405457,3028.7,3027.4,3.30412874]
[1764308947431,4.71263804,3028.2,3027.4,3.30412874]
[1764308947609,4.71263804,3028.4,3027.5,0.72559411]
[1764308947809,5.04331866,3028.6,3027.5,1.19819411]
[1764308948011,0.30728032,3028.5,3027.5,1.19819411]
[1764308948203,0.50199184,3028.4,3027.5,1.19819411]
[1764308948518,3.30218274,3028.3,3027.6,3.30294622]
[1764308948892,3.80406589,3028.4,3027.6,3.87554622]
[1764308949092,3.80406589,3028.4,3027.7,0.4726]
[1764308949800,0.50199184,3028.4,3027.7,0.4726]
[1764308950007,3.80408316,3028.4,3027.7,0.4726]
[1764308951224,0.50199184,3028.4,3027.9,0.1]
[1764308951397,6.60371128,3028.6,3027.9,0.1]
[1764308951720,0.30792892,3028.5,3027.5,3.86815643]
[1764308951899,0.30792892,3028.4,3027.4,0.001]
[1764308952098,9.90556692,3028.6,3027.5,0.93459411]
[1764308952318,0.33068062,3028.4,3027.5,0.93459411]
[1764308952620,0.30793861,3028.3,3027.5,0.93459411]
[1764308952918,0.30793861,3028.2,3027.5,0.209]
[1764308953119,1.02145669,3028.5,3027.4,0.001]
[1764308953120,0.3082183,3028.1,3027.4,0.72659411]
[1764308953325,0.30824924,3028.0,3027.4,0.001]
[1764308953524,0.30824924,3027.9,3027.4,0.001]
[1764308953722,0.209,3028.2,3027.4,0.001]
[1764308953924,0.30840771,3028.1,3027.4,0.001]
[1764308954090,0.30840771,3028.0,3027.5,0.4832]
[1764308954294,0.30853802,3027.9,3027.4,0.001]
[1764308954519,0.33068062,3028.1,3027.4,0.001]
[1764308954725,0.30855546,3028.0,3027.4,0.001]
[1764308954924,0.30855546,3027.9,3027.4,0.001]
[1764308955127,0.30855546,3027.8,3027.4,0.001]
[1764308955323,3.66386985,3027.8,3027.4,0.001]
[1764308955893,0.36112823,3027.8,3027.4,0.001]
[1764308956229,0.209,3028.4,3027.7,0.5696]
[1764308956426,0.3086571,3028.3,3028.0,0.4696]
[1764308956599,0.3086571,3028.2,3027.7,0.5832]
[1764308956799,0.3086571,3028.1,3027.7,0.5832]
[1764308957030,0.3086571,3028.0,3027.7,0.5832]
[1764308957324,3.51112435,3028.4,3027.7,3.88593491]
[1764308957528,0.30873549,3028.3,3027.9,0.4696]
[1764308957726,0.30873549,3028.2,3027.9,0.4696]
[1764308957920,0.30873549,3028.1,3027.9,0.4696]
[1764308958122,0.30873549,3028.0,3027.9,0.9528]
[1764308960922,0.30873549,3028.0,3027.9,0.4696]
[1764308961862,6.60523794,3027.9,3027.4,0.001]
[1764308962140,1.00023281,3027.8,3027.4,0.001]
[1764308962306,0.30883547,3027.7,3027.4,0.001]
[1764308962509,0.69139734,3027.8,3027.4,0.001]
[1764308962733,0.30879308,3027.7,3027.4,0.001]
[1764308962906,6.60523794,3027.9,3027.4,0.001]
[1764308963120,0.30879381,3027.8,3027.4,0.001]
[1764308963326,3.61166647,3027.7,3027.4,0.001]
[1764308963639,6.60480168,3028.1,3027.4,0.001]
[1764308963840,0.99012804,3028.0,3027.4,0.001]
[1764308964029,0.30874787,3027.9,3027.4,0.001]
[1764308964225,0.30874787,3027.8,3027.4,0.001]
[1764308964431,0.30874787,3027.7,3027.4,0.001]
[1764308964625,0.68138017,3028.0,3027.4,0.001]
[1764308964832,0.70708817,3027.9,3027.4,0.001]
[1764308965007,0.30871007,3027.8,3027.4,0.001]
[1764308965209,0.30871007,3027.7,3027.5,0.001]
[1764308965410,3.30272805,3027.8,3027.5,0.001]
[1764308965640,0.30867572,3027.7,3027.5,0.001]
[1764308965912,0.73125099,3027.7,3027.5,0.001]
[1764308966117,0.30867821,3027.6,3027.5,0.001]
[1764308967707,3.61162443,3027.6,3027.5,0.001]
[1764308968316,0.30867821,3027.6,3027.5,0.001]
[1764308968634,3.61162443,3027.6,3027.5,0.001]
[1764308968940,4.39708484,3027.6,3027.5,0.001]
[1764308969730,1.09413862,3027.6,3027.5,0.001]
[1764308969933,0.30867821,3027.6,3027.5,0.001]
[1764308970344,0.30867821,3027.6,3027.5,0.4706]
[1764308970537,0.30867821,3027.6,3027.5,0.9538]
[1764308970936,0.30867821,3027.6,3027.5,0.4706]
[1764308974055,3.61162443,3027.6,3027.5,0.001]
[1764308974226,0.30867821,3027.6,3027.5,0.001]
[1764308974860,3.61162443,3027.6,3027.5,0.001]
[1764308975053,1.00011441,3027.6,3027.5,0.001]
[1764308975361,3.61162443,3027.6,3027.5,0.001]
[1764308975530,0.30867821,3027.6,3027.5,0.001]
[1764308976564,3.61162443,3027.6,3027.5,0.001]
[1764308978860,0.30867821,3027.6,3027.5,0.001]
[1764308979063,0.30867821,3027.6,3027.5,0.9538]
[1764308979435,0.30867821,3027.6,3027.5,0.4706]
[1764308980548,0.30867821,3027.6,3027.5,0.9485]
[1764308980737,0.30867821,3027.6,3027.5,0.4706]
[1764308982165,0.30867821,3027.6,3027.4,0.001]
[1764308982166,4.61009811,3027.5,3027.4,0.001]
[1764308982470,3.54849398,3027.5,3027.4,0.001]
[1764308982660,3.97920339,3027.5,3027.4,0.001]
[1764308982972,7.18225871,3027.5,3027.4,0.001]
[1764308983264,7.73591261,3027.5,3027.4,0.001]
[1764308983570,8.92221633,3027.5,3027.4,0.001]
[1764308984136,8.82221633,3027.5,3027.4,0.001]
[1764308984471,7.63591261,3027.5,3027.4,0.001]
[1764308985340,8.1944604,3027.5,3027.4,0.001]
[1764308985543,7.30523199,3027.5,3027.4,0.001]
[1764308985850,7.09623199,3027.5,3027.4,0.001]
[1764308986364,6.17413388,3027.5,3027.4,0.001]
[1764308986551,5.96513388,3027.5,3027.4,0.001]
[1764308986751,4.53338846,3027.5,3027.4,0.001]
[1764308991249,4.32438846,3027.5,3027.4,0.001]
[1764308991443,4.53338846,3027.5,3027.4,0.001]
[1764308992593,4.32438846,3027.5,3027.4,0.001]
[1764308992795,4.53338846,3027.5,3027.4,0.001]
[1764308993094,5.35313612,3027.5,3027.4,0.001]
[1764308997176,5.68381674,3027.5,3027.4,0.001]
[1764308997694,5.35313612,3027.5,3027.4,0.001]
[1764308997990,5.68381674,3027.5,3027.4,0.001]
[1764308998397,5.68381674,3027.5,3026.0,0.001]
[1764308998398,22.004475,3027.4,3026.0,0.001]
[1764308998578,1.32023343,3026.6,3026.0,0.001]